[Event "*** Titled Tuesday 3|2 Blitz"]
[Site "Chess.com"]
[Date "2015.09.01"]
[Round "4"]
[White "HansCoolNiemann"]
[Black "wonderfultime"]
[Result "0-1"]
[WhiteElo "2037"]
[BlackElo "2640"]
[TimeControl "180+2"]
[EndTime "11:47:26 PDT"]
[Termination "wonderfultime won by checkmate"]

1. d4 {[%clk 0:03:01.9]} 1... d5 {[%clk 0:02:54]} 2. c4 {[%clk 0:03:01.6]} 2...
c6 {[%clk 0:02:55.4]} 3. Nf3 {[%clk 0:03:01.2]} 3... Nf6 {[%clk 0:02:56.9]} 4.
Nc3 {[%clk 0:03:01.9]} 4... dxc4 {[%clk 0:02:57.6]} 5. e4 {[%clk 0:03:00.6]}
5... b5 {[%clk 0:02:58.9]} 6. e5 {[%clk 0:02:54.6]} 6... Nd5 {[%clk 0:03:00.1]}
7. a4 {[%clk 0:02:56.2]} 7... e6 {[%clk 0:03:01.6]} 8. axb5 {[%clk 0:02:55.1]}
8... Nxc3 {[%clk 0:03:03]} 9. bxc3 {[%clk 0:02:57]} 9... cxb5 {[%clk 0:03:04.9]}
10. Bg5 {[%clk 0:02:47.6]} 10... Be7 {[%clk 0:03:02]} 11. Bxe7 {[%clk
0:02:47.9]} 11... Qxe7 {[%clk 0:03:03.9]} 12. Nd2 {[%clk 0:02:48.9]} 12... Bb7
{[%clk 0:03:01.5]} 13. Qg4 {[%clk 0:02:49.1]} 13... O-O {[%clk 0:02:59.4]} 14.
Be2 {[%clk 0:02:49.9]} 14... Nd7 {[%clk 0:02:54.2]} 15. Bf3 {[%clk 0:02:50.4]}
15... Bxf3 {[%clk 0:02:50.2]} 16. gxf3 {[%clk 0:02:52.3]} 16... f5 {[%clk
0:02:48.5]} 17. exf6 {[%clk 0:02:53.2]} 17... Nxf6 {[%clk 0:02:49.6]} 18. Qg5
{[%clk 0:02:54.7]} 18... Nd5 {[%clk 0:02:37.4]} 19. Qxe7 {[%clk 0:02:55.2]}
19... Nxe7 {[%clk 0:02:39.3]} 20. Ke2 {[%clk 0:02:48.7]} 20... Nd5 {[%clk
0:02:40.4]} 21. Ne4 {[%clk 0:02:50.6]} 21... a5 {[%clk 0:02:37.3]} 22. Nc5
{[%clk 0:02:42.4]} 22... Nxc3+ {[%clk 0:02:36.4]} 23. Ke3 {[%clk 0:02:42.3]}
23... Nd5+ {[%clk 0:02:36.3]} 24. Ke2 {[%clk 0:02:41.7]} 24... b4 {[%clk
0:02:34.6]} 25. Rhc1 {[%clk 0:02:41.3]} 25... c3 {[%clk 0:02:34.6]} 26. Ra4
{[%clk 0:02:40.6]} 26... Rfb8 {[%clk 0:02:28]} 27. Nb3 {[%clk 0:02:40.1]} 27...
Rb5 {[%clk 0:02:25.1]} 28. Rca1 {[%clk 0:02:40.2]} 28... Rf8 {[%clk 0:01:01.8]}
29. Rxa5 {[%clk 0:02:37.8]} 29... Rb7 {[%clk 0:01:02.3]} 30. Ra7 {[%clk
0:02:34.8]} 30... Rxa7 {[%clk 0:00:58.7]} 31. Rxa7 {[%clk 0:02:36.7]} 31... Rc8
{[%clk 0:01:00]} 32. Kd1 {[%clk 0:02:30.5]} 32... Rf8 {[%clk 0:00:47.1]} 33. Ke2
{[%clk 0:02:29.3]} 33... Rf4 {[%clk 0:00:35.7]} 34. Rc7 {[%clk 0:02:23.8]} 34...
Rh4 {[%clk 0:00:32.7]} 35. Nc5 {[%clk 0:02:23.4]} 35... Rxd4 {[%clk 0:00:25.9]}
36. Nxe6 {[%clk 0:02:23.9]} 36... Nf4+ {[%clk 0:00:27.2]} 37. Nxf4 {[%clk
0:02:22.3]} 37... Rxf4 {[%clk 0:00:29.1]} 38. Ke3 {[%clk 0:02:23.6]} 38... Rh4
{[%clk 0:00:29.7]} 39. Kd3 {[%clk 0:02:15]} 39... Rxh2 {[%clk 0:00:29.5]} 40.
Ke3 {[%clk 0:02:14]} 40... Rh1 {[%clk 0:00:29.5]} 41. Kd3 {[%clk 0:02:14.9]}
41... Rd1+ {[%clk 0:00:30.1]} 42. Kc2 {[%clk 0:02:14.8]} 42... Rd2+ {[%clk
0:00:31.5]} 43. Kb3 {[%clk 0:02:16.3]} 43... Rb2+ {[%clk 0:00:32.8]} 44. Ka4
{[%clk 0:02:17.9]} 44... c2 {[%clk 0:00:34.2]} 45. f4 {[%clk 0:02:18.7]} 45...
b3 {[%clk 0:00:35.4]} 46. f5 {[%clk 0:02:19.7]} 46... Rb1 {[%clk 0:00:37]} 47.
f6 {[%clk 0:02:20.4]} 47... gxf6 {[%clk 0:00:38.2]} 48. Rc8+ {[%clk 0:02:20.1]}
48... Kg7 {[%clk 0:00:39.3]} 49. Rc7+ {[%clk 0:02:22]} 49... Kg6 {[%clk
0:00:40.9]} 50. Ka5 {[%clk 0:02:20.1]} 50... Ra1+ {[%clk 0:00:40.6]} 51. Kb4
{[%clk 0:02:19]} 51... b2 {[%clk 0:00:42.5]} 52. Kc5 {[%clk 0:02:17.3]} 52...
b1=Q {[%clk 0:00:44.4]} 53. Kd6 {[%clk 0:02:17.7]} 53... Qb6+ {[%clk 0:00:44.8]}
54. Kd7 {[%clk 0:02:14.4]} 54... Ra7 {[%clk 0:00:46]} 55. Rxa7 {[%clk
0:02:14.2]} 55... Qxa7+ {[%clk 0:00:47.9]} 56. Ke8 {[%clk 0:02:15.8]} 56... c1=Q
{[%clk 0:00:48.6]} 57. Kd8 {[%clk 0:02:15.3]} 57... Qcc7+ {[%clk 0:00:49.7]} 58.
Ke8 {[%clk 0:02:16.2]} 58... Qc8# {[%clk 0:00:51.6]} 0-1

[Event "*** Titled Tuesday 3|2 Blitz"]
[Site "Chess.com"]
[Date "2015.09.01"]
[Round "4"]
[White "Imre91"]
[Black "zmaj23"]
[Result "0-1"]
[WhiteElo "2580"]
[BlackElo "2395"]
[TimeControl "180+2"]
[EndTime "11:47:33 PDT"]
[Termination "zmaj23 won on time"]

1. d4 {[%clk 0:03:01.9]} 1... Nf6 {[%clk 0:02:58.9]} 2. Bg5 {[%clk 0:03:02.5]}
2... e6 {[%clk 0:02:59.1]} 3. e4 {[%clk 0:03:00.1]} 3... h6 {[%clk 0:02:59]} 4.
Bxf6 {[%clk 0:03:01.5]} 4... Qxf6 {[%clk 0:02:59.6]} 5. Nc3 {[%clk 0:03:03.4]}
5... d6 {[%clk 0:03:00.1]} 6. Qd2 {[%clk 0:03:04.1]} 6... Bd7 {[%clk 0:02:56.8]}
7. O-O-O {[%clk 0:03:04.9]} 7... g6 {[%clk 0:02:53.4]} 8. f4 {[%clk 0:03:05.8]}
8... Bg7 {[%clk 0:02:53.7]} 9. Nf3 {[%clk 0:03:07]} 9... Nc6 {[%clk 0:02:53.2]}
10. e5 {[%clk 0:03:05.6]} 10... dxe5 {[%clk 0:02:48.2]} 11. dxe5 {[%clk
0:02:53.9]} 11... Qe7 {[%clk 0:02:48.5]} 12. h4 {[%clk 0:02:55.3]} 12... O-O-O
{[%clk 0:02:45.3]} 13. Qf2 {[%clk 0:02:53.7]} 13... Kb8 {[%clk 0:02:44.5]} 14.
Bd3 {[%clk 0:02:52.6]} 14... Rhg8 {[%clk 0:02:35.9]} 15. a3 {[%clk 0:02:52]}
15... f6 {[%clk 0:02:36]} 16. exf6 {[%clk 0:02:51.3]} 16... Bxf6 {[%clk
0:02:35.1]} 17. Ne4 {[%clk 0:02:51.8]} 17... Bh8 {[%clk 0:02:32.7]} 18. Qc5
{[%clk 0:02:51.1]} 18... Qg7 {[%clk 0:02:27]} 19. c3 {[%clk 0:02:48.5]} 19...
Rgf8 {[%clk 0:02:25.7]} 20. g3 {[%clk 0:02:49.1]} 20... e5 {[%clk 0:02:24.8]}
21. Nxe5 {[%clk 0:02:36.9]} 21... Nxe5 {[%clk 0:02:24.8]} 22. fxe5 {[%clk
0:02:38.8]} 22... Qxe5 {[%clk 0:02:26.5]} 23. Bc2 {[%clk 0:02:39.3]} 23... Bc6
{[%clk 0:02:21.9]} 24. Rhe1 {[%clk 0:02:39]} 24... Rxd1+ {[%clk 0:02:19.3]} 25.
Rxd1 {[%clk 0:02:39.9]} 25... Re8 {[%clk 0:02:17.6]} 26. Qc4 {[%clk 0:02:24.7]}
26... g5 {[%clk 0:02:11.7]} 27. hxg5 {[%clk 0:02:24.3]} 27... hxg5 {[%clk
0:02:13.5]} 28. Nc5 {[%clk 0:02:25.3]} 28... Qxg3 {[%clk 0:02:08.6]} 29. Kb1
{[%clk 0:02:21.1]} 29... Qf3 {[%clk 0:02:07.3]} 30. Qb4 {[%clk 0:02:09.1]} 30...
g4 {[%clk 0:02:03.2]} 31. Rd3 {[%clk 0:02:03.2]} 31... Qh1+ {[%clk 0:01:59.6]}
32. Ka2 {[%clk 0:02:03.7]} 32... Qg2 {[%clk 0:01:55]} 33. Ba4 {[%clk 0:01:56]}
33... b6 {[%clk 0:01:55]} 34. Nb3 {[%clk 0:01:43.7]} 34... Bxa4 {[%clk
0:01:50.8]} 35. Qxa4 {[%clk 0:01:44.5]} 35... Rf8 {[%clk 0:01:50.2]} 36. Qb4
{[%clk 0:01:40.5]} 36... Qf1 {[%clk 0:01:51.3]} 37. Rd7 {[%clk 0:01:39.9]} 37...
g3 {[%clk 0:01:49.9]} 38. Nd2 {[%clk 0:01:37.6]} 38... g2 {[%clk 0:01:48.2]} 39.
Nxf1 {[%clk 0:01:31.1]} 39... gxf1=Q {[%clk 0:01:50.1]} 40. Qe7 {[%clk
0:01:32.4]} 40... Qc4+ {[%clk 0:01:46.9]} 0-1

[Event "*** Titled Tuesday 3|2 Blitz"]
[Site "Chess.com"]
[Date "2015.09.01"]
[Round "4"]
[White "ArnaudovP"]
[Black "Penguininja"]
[Result "0-1"]
[WhiteElo "2335"]
[BlackElo "2146"]
[TimeControl "180+2"]
[EndTime "11:47:33 PDT"]
[Termination "Penguininja won by resignation"]

1. e4 {[%clk 0:02:57.1]} 1... e5 {[%clk 0:02:59.7]} 2. Nf3 {[%clk 0:02:57.2]}
2... Nc6 {[%clk 0:03:00.7]} 3. Bb5 {[%clk 0:02:56.9]} 3... f5 {[%clk 0:03:01.8]}
4. Nc3 {[%clk 0:02:48.2]} 4... fxe4 {[%clk 0:03:02.6]} 5. Nxe4 {[%clk
0:02:48.8]} 5... Nf6 {[%clk 0:03:04.3]} 6. Nxf6+ {[%clk 0:02:44.1]} 6... Qxf6
{[%clk 0:03:05.8]} 7. Qe2 {[%clk 0:02:42.4]} 7... Be7 {[%clk 0:03:07.3]} 8. d3
{[%clk 0:02:41.5]} 8... Nd4 {[%clk 0:02:58.1]} 9. Nxd4 {[%clk 0:02:39.8]} 9...
exd4 {[%clk 0:03:00]} 10. O-O {[%clk 0:02:34.6]} 10... c6 {[%clk 0:02:56.1]} 11.
Ba4 {[%clk 0:02:30.5]} 11... O-O {[%clk 0:02:53.8]} 12. Bd2 {[%clk 0:02:22.2]}
12... d5 {[%clk 0:02:52.2]} 13. Rae1 {[%clk 0:02:21.3]} 13... Bd6 {[%clk
0:02:53.1]} 14. c3 {[%clk 0:02:16.4]} 14... Bf5 {[%clk 0:02:44.4]} 15. Bc2
{[%clk 0:02:09.8]} 15... Qh4 {[%clk 0:02:38.2]} 16. g3 {[%clk 0:02:08.7]} 16...
Qh3 {[%clk 0:02:36.3]} 17. f3 {[%clk 0:02:02.8]} 17... Bc5 {[%clk 0:02:10.7]}
18. Kh1 {[%clk 0:01:58.5]} 18... Bd7 {[%clk 0:02:00]} 19. Qg2 {[%clk 0:01:51.3]}
19... Qh5 {[%clk 0:01:56]} 20. g4 {[%clk 0:01:51.8]} 20... Qf7 {[%clk
0:01:51.4]} 21. f4 {[%clk 0:01:44.6]} 21... Rae8 {[%clk 0:01:47.2]} 22. f5
{[%clk 0:01:43.4]} 22... dxc3 {[%clk 0:01:42.3]} 23. Bxc3 {[%clk 0:01:35.8]}
23... Bd6 {[%clk 0:01:37.8]} 24. d4 {[%clk 0:01:29.6]} 24... Kh8 {[%clk
0:01:23.4]} 25. Re5 {[%clk 0:01:25.6]} 25... c5 {[%clk 0:01:19.3]} 26. Rxe8
{[%clk 0:01:21.5]} 26... Rxe8 {[%clk 0:01:19.9]} 27. g5 {[%clk 0:01:21.2]} 27...
Bb5 {[%clk 0:01:08.1]} 28. Rg1 {[%clk 0:01:17.8]} 28... Re2 {[%clk 0:00:58.5]}
29. Qh3 {[%clk 0:00:54.6]} 29... Rxh2+ {[%clk 0:00:49.9]} 30. Qxh2 {[%clk
0:00:55.2]} 30... Bxh2 {[%clk 0:00:51.8]} 31. g6 {[%clk 0:00:52]} 31... hxg6
{[%clk 0:00:39.8]} 32. Kxh2 {[%clk 0:00:50.1]} 32... Qc7+ {[%clk 0:00:40.1]} 33.
Rg3 {[%clk 0:00:42.3]} 33... cxd4 {[%clk 0:00:38.9]} 0-1

[Event "*** Titled Tuesday 3|2 Blitz"]
[Site "Chess.com"]
[Date "2015.09.01"]
[Round "4"]
[White "Iball95"]
[Black "Yaacovn"]
[Result "1/2-1/2"]
[WhiteElo "2345"]
[BlackElo "2600"]
[TimeControl "180+2"]
[EndTime "11:48:03 PDT"]
[Termination "Game drawn by repetition"]

1. e4 {[%clk 0:03:01.9]} 1... c6 {[%clk 0:03:01.3]} 2. c4 {[%clk 0:03:03.1]}
2... d5 {[%clk 0:03:03.2]} 3. cxd5 {[%clk 0:03:04.3]} 3... Nf6 {[%clk
0:03:04.4]} 4. Nc3 {[%clk 0:03:04.1]} 4... cxd5 {[%clk 0:03:02.2]} 5. exd5
{[%clk 0:03:06]} 5... Nxd5 {[%clk 0:03:03.3]} 6. Nf3 {[%clk 0:03:06.2]} 6... e6
{[%clk 0:03:04.7]} 7. d4 {[%clk 0:03:03.6]} 7... Be7 {[%clk 0:03:05.5]} 8. Bd3
{[%clk 0:03:04.2]} 8... Nf6 {[%clk 0:03:03.8]} 9. O-O {[%clk 0:03:05.4]} 9...
O-O {[%clk 0:02:51.9]} 10. Bg5 {[%clk 0:03:06.3]} 10... Nc6 {[%clk 0:02:42.1]}
11. Rc1 {[%clk 0:03:02.4]} 11... b6 {[%clk 0:02:43.3]} 12. Bb1 {[%clk
0:02:40.4]} 12... Bb7 {[%clk 0:02:42]} 13. Re1 {[%clk 0:02:34.5]} 13... Qd6
{[%clk 0:02:42.4]} 14. Bxf6 {[%clk 0:02:02.3]} 14... Bxf6 {[%clk 0:02:41.6]} 15.
Ne4 {[%clk 0:02:03.7]} 15... Qd8 {[%clk 0:02:41.5]} 16. Nxf6+ {[%clk 0:01:57]}
16... Qxf6 {[%clk 0:02:43.4]} 17. Rxc6 {[%clk 0:01:56.7]} 17... Bxc6 {[%clk
0:02:43.9]} 18. Qc2 {[%clk 0:01:57.4]} 18... g6 {[%clk 0:02:42.5]} 19. Qxc6
{[%clk 0:01:58.2]} 19... Rac8 {[%clk 0:02:38.1]} 20. Qe4 {[%clk 0:01:58.9]}
20... Rc4 {[%clk 0:02:33.3]} 21. h4 {[%clk 0:01:59.8]} 21... Rfc8 {[%clk
0:02:33.9]} 22. g3 {[%clk 0:01:56.6]} 22... Rc1 {[%clk 0:02:33.7]} 23. Rxc1
{[%clk 0:01:56.6]} 23... Rxc1+ {[%clk 0:02:33.3]} 24. Kg2 {[%clk 0:01:58.2]}
24... Kg7 {[%clk 0:02:27.6]} 25. Bc2 {[%clk 0:01:56.7]} 25... Qf5 {[%clk
0:02:26.4]} 26. Qxf5 {[%clk 0:01:45.1]} 26... gxf5 {[%clk 0:02:27.1]} 27. Bb3
{[%clk 0:01:32.7]} 27... Rb1 {[%clk 0:02:22.8]} 28. d5 {[%clk 0:01:33.3]} 28...
Rxb2 {[%clk 0:02:22.7]} 29. dxe6 {[%clk 0:01:34]} 29... fxe6 {[%clk 0:02:22.1]}
30. Bxe6 {[%clk 0:01:35.1]} 30... Kf6 {[%clk 0:02:23.2]} 31. Bg8 {[%clk
0:01:35.9]} 31... b5 {[%clk 0:02:23.3]} 32. h5 {[%clk 0:01:31.3]} 32... h6
{[%clk 0:02:22.6]} 33. Nd4 {[%clk 0:01:24.9]} 33... a5 {[%clk 0:02:23.3]} 34.
Kf3 {[%clk 0:01:22.6]} 34... a4 {[%clk 0:02:24.3]} 35. Ke3 {[%clk 0:01:22.6]}
35... b4 {[%clk 0:02:24.2]} 36. Be6 {[%clk 0:01:21.4]} 36... b3 {[%clk
0:02:16.5]} 37. axb3 {[%clk 0:00:58.1]} 37... a3 {[%clk 0:02:17.3]} 38. b4
{[%clk 0:00:52.5]} 38... Rxb4 {[%clk 0:02:18.3]} 39. Bb3 {[%clk 0:00:51.1]}
39... Rb6 {[%clk 0:02:10.6]} 40. f4 {[%clk 0:00:46.1]} 40... Rb7 {[%clk
0:02:06.1]} 41. Kd3 {[%clk 0:00:46.9]} 41... Rg7 {[%clk 0:01:59.5]} 42. Ne2
{[%clk 0:00:45.5]} 42... Ra7 {[%clk 0:02:00.3]} 43. Nc3 {[%clk 0:00:42.9]} 43...
Rb7 {[%clk 0:01:55]} 44. Kc2 {[%clk 0:00:43.4]} 44... Rg7 {[%clk 0:01:53.2]} 45.
Nd5+ {[%clk 0:00:43.9]} 45... Ke6 {[%clk 0:01:53.3]} 46. Ne3+ {[%clk 0:00:42.6]}
46... Kf6 {[%clk 0:01:54.3]} 47. Nd5+ {[%clk 0:00:43.9]} 47... Ke6 {[%clk
0:01:50.3]} 48. Ne3+ {[%clk 0:00:33.7]} 48... Kf6 {[%clk 0:01:49.3]} 49. Nd5+
{[%clk 0:00:34.1]} 49... Kf7 {[%clk 0:01:50.2]} 50. Ne3+ {[%clk 0:00:34.1]}
50... Kf6 {[%clk 0:01:43.9]} 51. Nd5+ {[%clk 0:00:32]} 51... Ke6 {[%clk
0:01:40.9]} 52. Ne3+ {[%clk 0:00:25.3]} 52... Kf6 {[%clk 0:01:41.5]} 53. Nd5+
{[%clk 0:00:26.5]} 1/2-1/2

[Event "*** Titled Tuesday 3|2 Blitz"]
[Site "Chess.com"]
[Date "2015.09.01"]
[Round "4"]
[White "Tal-Baronfew"]
[Black "facu57"]
[Result "0-1"]
[WhiteElo "2727"]
[BlackElo "2463"]
[TimeControl "180+2"]
[EndTime "11:48:04 PDT"]
[Termination "facu57 won by resignation"]

1. d4 {[%clk 0:03:01.9]} 1... Nf6 {[%clk 0:02:59.7]} 2. c4 {[%clk 0:03:03]} 2...
e6 {[%clk 0:03:01.6]} 3. Nc3 {[%clk 0:03:04.2]} 3... Bb4 {[%clk 0:03:01.9]} 4.
f3 {[%clk 0:03:05.5]} 4... d5 {[%clk 0:02:56.6]} 5. a3 {[%clk 0:03:06.4]} 5...
Be7 {[%clk 0:02:54.6]} 6. e4 {[%clk 0:03:07]} 6... dxe4 {[%clk 0:02:53.3]} 7.
fxe4 {[%clk 0:03:08.6]} 7... e5 {[%clk 0:02:55.2]} 8. d5 {[%clk 0:03:09.7]} 8...
O-O {[%clk 0:02:52.3]} 9. Nf3 {[%clk 0:03:09.8]} 9... Bg4 {[%clk 0:02:51.2]} 10.
Bg5 {[%clk 0:03:06.4]} 10... Nbd7 {[%clk 0:02:44.6]} 11. h3 {[%clk 0:03:05.2]}
11... Bxf3 {[%clk 0:02:37.6]} 12. Qxf3 {[%clk 0:03:05.3]} 12... Nxd5 {[%clk
0:02:32.3]} 13. Bxe7 {[%clk 0:02:41.5]} 13... Nxe7 {[%clk 0:02:32.3]} 14. O-O-O
{[%clk 0:02:40.3]} 14... Nc6 {[%clk 0:02:31]} 15. h4 {[%clk 0:02:32.1]} 15...
Nd4 {[%clk 0:02:26.4]} 16. Qg3 {[%clk 0:02:32.2]} 16... c6 {[%clk 0:02:24.5]}
17. Ne2 {[%clk 0:02:29.2]} 17... Nc5 {[%clk 0:02:15.4]} 18. Qxe5 {[%clk
0:02:13.6]} 18... Ncb3+ {[%clk 0:02:02.1]} 19. Kb1 {[%clk 0:02:13.3]} 19... Nf3
{[%clk 0:01:43.3]} 20. Rxd8 {[%clk 0:01:56.8]} 20... Nxe5 {[%clk 0:01:44.1]} 21.
Rxa8 {[%clk 0:01:54.3]} 21... Rxa8 {[%clk 0:01:46]} 22. Kc2 {[%clk 0:01:49.9]}
22... Nc5 {[%clk 0:01:47.1]} 23. Ng3 {[%clk 0:01:37.7]} 23... Ne6 {[%clk
0:01:47.4]} 24. Be2 {[%clk 0:01:30.1]} 24... Rd8 {[%clk 0:01:47.7]} 25. Kc3
{[%clk 0:01:27.3]} 25... c5 {[%clk 0:01:43.8]} 26. Rf1 {[%clk 0:01:22.9]} 26...
b6 {[%clk 0:01:38.4]} 27. b4 {[%clk 0:01:19.3]} 27... g6 {[%clk 0:01:37.2]} 28.
h5 {[%clk 0:01:15.5]} 28... Kg7 {[%clk 0:01:36.5]} 29. Ra1 {[%clk 0:01:05.5]}
29... Nd4 {[%clk 0:01:30.7]} 30. bxc5 {[%clk 0:00:49.2]} 30... bxc5 {[%clk
0:01:27.3]} 31. Bd1 {[%clk 0:00:33.8]} 31... Rb8 {[%clk 0:01:19.4]} 32. Ne2
{[%clk 0:00:31.5]} 32... Nec6 {[%clk 0:01:20.5]} 33. Nxd4 {[%clk 0:00:31.5]}
33... Nxd4 {[%clk 0:01:18.3]} 34. Ba4 {[%clk 0:00:25.9]} 34... Rb6 {[%clk
0:01:13]} 35. hxg6 {[%clk 0:00:14.2]} 35... Rxg6 {[%clk 0:00:45.1]} 36. Rg1
{[%clk 0:00:15.1]} 36... Ne2+ {[%clk 0:00:42.9]} 0-1

[Event "*** Titled Tuesday 3|2 Blitz"]
[Site "Chess.com"]
[Date "2015.09.01"]
[Round "4"]
[White "alturas_pacificas"]
[Black "lukas_111111"]
[Result "0-1"]
[WhiteElo "2009"]
[BlackElo "2214"]
[TimeControl "180+2"]
[EndTime "11:48:07 PDT"]
[Termination "lukas_111111 won by resignation"]

1. d4 {[%clk 0:03:01.9]} 1... Nf6 {[%clk 0:02:38.7]} 2. Bf4 {[%clk 0:03:03.3]}
2... d5 {[%clk 0:02:37.3]} 3. e3 {[%clk 0:03:04.2]} 3... c5 {[%clk 0:02:35.1]}
4. c3 {[%clk 0:03:04.9]} 4... Nc6 {[%clk 0:02:35.6]} 5. Nd2 {[%clk 0:03:05.9]}
5... e6 {[%clk 0:02:23.8]} 6. Ngf3 {[%clk 0:03:05.2]} 6... Bd6 {[%clk
0:02:17.7]} 7. Bg3 {[%clk 0:03:02.2]} 7... Qc7 {[%clk 0:02:14]} 8. dxc5 {[%clk
0:03:02.6]} 8... Bxg3 {[%clk 0:02:13]} 9. hxg3 {[%clk 0:03:04.5]} 9... a5 {[%clk
0:02:11.7]} 10. Bb5 {[%clk 0:02:30.2]} 10... h6 {[%clk 0:02:04.6]} 11. O-O
{[%clk 0:02:20.6]} 11... O-O {[%clk 0:02:02.9]} 12. a4 {[%clk 0:02:11.4]} 12...
Nd7 {[%clk 0:01:51.7]} 13. Nb3 {[%clk 0:02:01.6]} 13... Na7 {[%clk 0:01:42.4]}
14. Qd4 {[%clk 0:01:49.7]} 14... Nc6 {[%clk 0:01:36.4]} 15. Qd2 {[%clk
0:01:29.8]} 15... Ne7 {[%clk 0:01:34.9]} 16. Bxd7 {[%clk 0:01:08.9]} 16... Bxd7
{[%clk 0:01:34.8]} 17. Rfc1 {[%clk 0:00:59.5]} 17... e5 {[%clk 0:01:24.3]} 18.
c4 {[%clk 0:00:58.2]} 18... dxc4 {[%clk 0:01:22.9]} 19. Rxc4 {[%clk 0:00:57.9]}
19... Be6 {[%clk 0:01:24.4]} 20. Rc3 {[%clk 0:00:57.8]} 20... Nd5 {[%clk
0:01:22.8]} 21. Rcc1 {[%clk 0:00:53.6]} 21... Rfd8 {[%clk 0:01:09.7]} 22. Qe2
{[%clk 0:00:50.7]} 22... Nb4 {[%clk 0:01:07.4]} 23. Nbd2 {[%clk 0:00:48.9]}
23... Rac8 {[%clk 0:00:38.7]} 24. Ra3 {[%clk 0:00:49]} 24... f6 {[%clk
0:00:23.1]} 25. Ne4 {[%clk 0:00:38.7]} 25... Qf7 {[%clk 0:00:23.4]} 26. Rd1
{[%clk 0:00:25.1]} 26... Qe7 {[%clk 0:00:23.3]} 27. Nd6 {[%clk 0:00:25]} 27...
Rxc5 {[%clk 0:00:22.4]} 28. Ne4 {[%clk 0:00:21.7]} 28... Rcd5 {[%clk 0:00:21.6]}
29. Rxd5 {[%clk 0:00:21.9]} 29... Bxd5 {[%clk 0:00:22.7]} 30. Nc3 {[%clk
0:00:22.1]} 30... Bc6 {[%clk 0:00:23]} 31. Nb5 {[%clk 0:00:22.8]} 31... Qd7
{[%clk 0:00:20.4]} 32. Rc3 {[%clk 0:00:21.8]} 32... Qd1+ {[%clk 0:00:20.6]} 33.
Kh2 {[%clk 0:00:22.8]} 33... Qxe2 {[%clk 0:00:20.9]} 0-1

[Event "*** Titled Tuesday 3|2 Blitz"]
[Site "Chess.com"]
[Date "2015.09.01"]
[Round "4"]
[White "AleksandrNevski"]
[Black "Bab3s"]
[Result "1-0"]
[WhiteElo "2307"]
[BlackElo "2132"]
[TimeControl "180+2"]
[EndTime "11:48:28 PDT"]
[Termination "AleksandrNevski won by resignation"]

1. c4 {[%clk 0:03:01.9]} 1... Nf6 {[%clk 0:03:00.2]} 2. g3 {[%clk 0:03:02.6]}
2... e5 {[%clk 0:03:00.5]} 3. Bg2 {[%clk 0:03:03.8]} 3... d5 {[%clk 0:03:01.2]}
4. cxd5 {[%clk 0:03:04.5]} 4... Nxd5 {[%clk 0:03:03.1]} 5. Nc3 {[%clk
0:03:05.4]} 5... Nb6 {[%clk 0:03:03.6]} 6. Nf3 {[%clk 0:03:05.6]} 6... Nc6
{[%clk 0:03:04.4]} 7. O-O {[%clk 0:03:07.1]} 7... Be7 {[%clk 0:03:05.1]} 8. a3
{[%clk 0:03:08.6]} 8... a5 {[%clk 0:02:52.1]} 9. d3 {[%clk 0:03:08.7]} 9... O-O
{[%clk 0:02:52]} 10. Be3 {[%clk 0:03:10.2]} 10... Re8 {[%clk 0:02:51.6]} 11. Rc1
{[%clk 0:03:11.6]} 11... Bf8 {[%clk 0:02:50.3]} 12. Bxb6 {[%clk 0:02:40.8]}
12... cxb6 {[%clk 0:02:49.5]} 13. Nd2 {[%clk 0:02:42.2]} 13... g6 {[%clk
0:02:37.2]} 14. Nc4 {[%clk 0:02:42.5]} 14... Bg7 {[%clk 0:02:36.6]} 15. e3
{[%clk 0:02:37.8]} 15... Bf5 {[%clk 0:02:28.2]} 16. Qb3 {[%clk 0:02:19.9]} 16...
Bxd3 {[%clk 0:01:53.2]} 17. Rfd1 {[%clk 0:02:19.5]} 17... Bxc4 {[%clk
0:01:53.5]} 18. Qxc4 {[%clk 0:02:19.3]} 18... Qg5 {[%clk 0:01:27]} 19. Nd5
{[%clk 0:02:12.6]} 19... Rad8 {[%clk 0:01:19.1]} 20. Nxb6 {[%clk 0:02:10.5]}
20... Rxd1+ {[%clk 0:01:16]} 21. Rxd1 {[%clk 0:02:10.7]} 21... e4 {[%clk
0:00:54.7]} 22. b3 {[%clk 0:01:44.8]} 22... Rd8 {[%clk 0:00:47.2]} 23. Rxd8+
{[%clk 0:01:39.4]} 23... Qxd8 {[%clk 0:00:49.1]} 24. Nd5 {[%clk 0:01:39.1]}
24... Qd6 {[%clk 0:00:45.4]} 25. a4 {[%clk 0:01:27.8]} 25... h5 {[%clk
0:00:28.3]} 26. Bxe4 {[%clk 0:01:26.7]} 26... Ne5 {[%clk 0:00:20.4]} 27. Qb5
{[%clk 0:01:25]} 27... Ng4 {[%clk 0:00:18.8]} 28. Qxa5 {[%clk 0:01:11.3]} 28...
Nf6 {[%clk 0:00:16.1]} 29. Nxf6+ {[%clk 0:01:05.2]} 29... Qxf6 {[%clk
0:00:15.7]} 30. Qa8+ {[%clk 0:01:03.4]} 30... Kh7 {[%clk 0:00:15.8]} 31. Qxb7
{[%clk 0:01:01.6]} 31... h4 {[%clk 0:00:16.5]} 32. Bd3 {[%clk 0:00:44]} 32... h3
{[%clk 0:00:12.3]} 33. Bf1 {[%clk 0:00:44.1]} 33... Qa1 {[%clk 0:00:12.1]} 34.
Qxf7 {[%clk 0:00:42.8]} 34... Qb1 {[%clk 0:00:10.5]} 35. Qc4 {[%clk 0:00:39.6]}
35... Kh8 {[%clk 0:00:07.9]} 36. a5 {[%clk 0:00:39.9]} 36... Be5 {[%clk
0:00:06]} 37. a6 {[%clk 0:00:40]} 37... Qa1 {[%clk 0:00:07]} 38. Qc8+ {[%clk
0:00:38.8]} 38... Kg7 {[%clk 0:00:07.4]} 39. Qb7+ {[%clk 0:00:40.4]} 39... Kh6
{[%clk 0:00:07.7]} 40. a7 {[%clk 0:00:41.6]} 1-0